bitfinex-derivatives/quotes_BTCF0:USTF0_20250703
["timestamp","ask_amount","ask_price","bid_price","bid_amount"]
[1751505718446,0.2784224,109110.0,109100.0,1.5904111]
[1751505718741,0.2794224,109110.0,109100.0,1.5904111]
[1751505719342,0.2794224,109110.0,109100.0,1.6204111]
[1751505720544,0.2794224,109110.0,109100.0,1.64779674]
[1751505721741,0.0962,109110.0,109100.0,1.64779674]
[1751505721942,0.0321,109110.0,109100.0,1.64779674]
[1751505722745,0.0321,109110.0,109100.0,1.67859674]
[1751505723447,0.0321,109110.0,109100.0,1.6785311]
[1751505723641,0.0321,109110.0,109100.0,1.6785304]
[1751505723842,0.2153224,109110.0,109100.0,1.92758189]
[1751505724147,0.2153224,109110.0,109100.0,1.88604002]
[1751505724946,0.2153224,109110.0,109100.0,0.4067971]
[1751505725244,0.51106331,109110.0,109100.0,1.47149212]
[1751505725445,0.26160829,109110.0,109100.0,1.47149212]
[1751505725647,0.26160829,109110.0,109100.0,1.72094714]
[1751505725948,0.26160829,109110.0,109100.0,0.62900737]
[1751505726241,0.04738589,109110.0,109100.0,1.63305649]
[1751505726445,0.23060819,109110.0,109100.0,1.66385649]
[1751505728641,0.04738589,109110.0,109100.0,1.66385649]
[1751505728846,0.04738589,109110.0,109100.0,1.67459835]
[1751505729047,0.23060829,109110.0,109100.0,1.67459835]
[1751505731549,0.23060829,109110.0,109100.0,1.85319835]
[1751505733157,0.04738589,109110.0,109100.0,1.85319835]
[1751505733358,0.003,109120.0,109110.0,0.1832223]
[1751505733653,0.0335,109120.0,109110.0,0.92910284]
[1751505733860,0.0335,109120.0,109110.0,0.96000284]
[1751505734157,0.0335,109120.0,109110.0,0.97993787]
[1751505734358,0.0335,109120.0,109110.0,1.0072408]
[1751505734659,0.0345,109120.0,109110.0,1.03479222]
[1751505735262,0.0345,109120.0,109110.0,1.23103022]
[1751505735660,0.0345,109120.0,109110.0,1.17617587]
[1751505735861,0.0365,109120.0,109110.0,1.17617587]
[1751505736164,0.0365,109120.0,109110.0,1.23102936]
[1751505736465,0.0365,109120.0,109110.0,1.17617501]
[1751505736765,0.0355,109120.0,109110.0,1.17617501]
[1751505737662,0.2187056,109120.0,109110.0,1.14527501]
[1751505737865,0.0355,109120.0,109110.0,1.14527501]
[1751505738057,0.0335,109120.0,109110.0,1.14527501]
[1751505738367,0.2167056,109120.0,109110.0,1.69724474]
[1751505738566,0.2483056,109120.0,109110.0,1.7245272]
[1751505738960,0.2483056,109120.0,109110.0,1.68801302]
[1751505739466,0.26358705,109120.0,109110.0,1.68801302]
[1751505739965,0.26358705,109120.0,109110.0,0.84561302]
[1751505740165,0.26358705,109120.0,109110.0,1.7245272]
[1751505740365,0.26358705,109120.0,109110.0,1.68801302]
[1751505741265,0.26358705,109120.0,109110.0,1.7245272]
[1751505743463,0.26358705,109120.0,109110.0,1.5459272]
[1751505744568,0.26358705,109120.0,109110.0,1.50941404]
[1751505744968,0.26358705,109120.0,109110.0,0.66701404]
[1751505745161,0.26358705,109120.0,109110.0,0.65627303]
[1751505745765,0.26358705,109120.0,109110.0,0.22352046]
[1751505745969,0.51311732,109120.0,109110.0,0.196238]
[1751505746269,0.26358705,109120.0,109110.0,0.196238]
[1751505747272,0.69641332,109120.0,109110.0,0.196238]
[1751505747666,0.26358705,109120.0,109110.0,0.196238]
[1751505750570,0.26358705,109120.0,109110.0,0.62899057]
[1751505752361,0.26358705,109120.0,109110.0,0.44576827]
[1751505752969,0.26358705,109120.0,109110.0,0.62899057]
[1751505753859,0.26358705,109120.0,109110.0,0.66199057]
[1751505754064,0.26358705,109120.0,109110.0,0.91152084]
[1751505754571,0.26358705,109120.0,109110.0,0.66199057]
[1751505755270,0.26358705,109120.0,109110.0,0.67273221]
[1751505755473,0.23198705,109120.0,109110.0,0.67273221]
[1751505755867,0.23198705,109120.0,109110.0,0.92226231]
[1751505756662,0.01828145,109120.0,109110.0,1.20266231]
[1751505756867,0.01828145,109120.0,109110.0,1.22994477]
[1751505757974,0.20148705,109120.0,109110.0,1.22994477]
[1751505763768,0.20148705,109120.0,109110.0,1.22994381]
[1751505764272,0.20148705,109120.0,109110.0,1.25571748]
[1751505764672,0.20148705,109120.0,109110.0,1.28328937]
[1751505767973,0.20148705,109120.0,109110.0,1.28528937]
[1751505768672,0.20148705,109120.0,109110.0,1.28628937]
[1751505769773,0.20148705,109120.0,109110.0,1.10768937]
[1751505773671,0.20148705,109120.0,109110.0,1.84796937]
[1751505773873,0.23218705,109120.0,109110.0,1.79311502]
[1751505774067,0.23218705,109120.0,109110.0,1.80385571]
[1751505774873,0.23218705,109120.0,109110.0,1.83116663]
[1751505775075,0.23218705,109120.0,109110.0,0.27380379]
[1751505775274,0.29518705,109120.0,109110.0,0.65930149]
[1751505778174,0.29518705,109120.0,109110.0,0.90883176]
[1751505779582,0.23218705,109120.0,109110.0,0.90883176]
[1751505779774,0.23218705,109120.0,109110.0,0.94183176]
[1751505781581,0.1862055,109120.0,109110.0,0.97834594]
[1751505781775,0.2170055,109120.0,109110.0,0.97834594]
[1751505783382,0.2170055,109120.0,109110.0,0.9890871]
[1751505785386,0.2170055,109120.0,109110.0,0.96177618]
[1751505786981,0.2170055,109120.0,109110.0,0.46271564]
[1751505787176,0.2170055,109120.0,109110.0,0.96177618]
[1751505792885,0.2170055,109120.0,109110.0,1.05397618]
[1751505793490,0.2170055,109120.0,109110.0,1.05397603]
[1751505794089,0.2170055,109120.0,109110.0,1.89597603]
[1751505794692,0.2170055,109120.0,109110.0,1.8868102]
[1751505796791,0.2170055,109120.0,109110.0,1.0126102]
[1751505796991,0.2170055,109120.0,109110.0,1.8545702]
[1751505797492,0.0338,109120.0,109110.0,1.89108438]
[1751505797789,0.2290028,109130.0,109120.0,0.1832056]
[1751505797986,0.2290028,109130.0,109120.0,0.65222602]
[1751505798293,0.2595028,109130.0,109120.0,0.65222602]
[1751505799194,0.2595028,109130.0,109120.0,0.66296612]
[1751505799689,0.2595028,109130.0,109120.0,0.66296605]
[1751505800291,0.2595028,109130.0,109120.0,0.8865524]
[1751505800493,0.2595028,109130.0,109120.0,0.85920405]
[1751505800889,0.2595028,109130.0,109120.0,0.89030405]
[1751505801090,0.2595028,109130.0,109120.0,0.9176524]
[1751505801495,0.0305,109130.0,109120.0,1.16718267]
[1751505801688,0.2136888,109130.0,109120.0,1.13983432]
[1751505801893,0.36264294,109140.0,109130.0,0.1831888]
[1751505802091,0.39404294,109140.0,109130.0,0.46321907]
[1751505802302,0.39404294,109140.0,109130.0,0.47395898]
[1751505803098,0.39404294,109140.0,109130.0,0.46321907]
[1751505803399,0.26954114,109140.0,109130.0,0.72192081]
[1751505803592,0.21670936,109140.0,109130.0,0.72192081]
[1751505803797,0.21770936,109140.0,109130.0,0.73266066]
[1751505804398,0.21770936,109140.0,109130.0,0.48313039]
[1751505804604,0.21770936,109140.0,109130.0,0.51047874]
[1751505804904,0.21770936,109140.0,109130.0,0.49973889]
[1751505805301,0.21770936,109140.0,109130.0,0.69597689]
[1751505805697,0.00313736,109140.0,109130.0,1.04550716]
[1751505805906,0.18630936,109140.0,109130.0,1.08664642]
[1751505806094,0.21670936,109140.0,109130.0,1.08664642]
[1751505806807,0.21370936,109140.0,109130.0,1.08764642]
[1751505807005,0.21370936,109140.0,109130.0,1.08964642]
[1751505807800,0.21370936,109140.0,109130.0,1.94244614]
[1751505808210,0.21370936,109140.0,109130.0,1.93170716]
[1751505808401,0.21370936,109140.0,109130.0,1.94244614]
[1751505811905,0.03053736,109140.0,109130.0,1.94244614]
[1751505812102,0.07501803,109150.0,109140.0,0.183172]
[1751505812413,0.25817323,109150.0,109140.0,0.93228089]
[1751505812908,0.07201803,109150.0,109140.0,1.48254929]
[1751505813112,0.2289304,109160.0,109150.0,0.2747264]
[1751505813306,0.2289304,109160.0,109150.0,0.52425667]
[1751505813506,0.2589304,109160.0,109150.0,1.38173667]
[1751505814104,0.3047164,109160.0,109150.0,1.38173667]
[1751505814304,0.3067164,109160.0,109150.0,1.38173667]
[1751505814615,0.3077164,109160.0,109150.0,0.52425667]
[1751505814818,0.3077164,109160.0,109150.0,1.38145667]
[1751505815309,0.3396164,109160.0,109150.0,1.57769467]
[1751505816210,0.41135573,109160.0,109150.0,1.57769467]
[1751505816711,0.41135573,109160.0,109150.0,0.72049467]
[1751505818611,0.42627081,109160.0,109150.0,0.44576827]
[1751505819111,0.42627081,109160.0,109150.0,0.62892357]
[1751505821119,0.42627081,109160.0,109150.0,0.44576827]
[1751505823826,0.42627081,109160.0,109150.0,0.196238]
[1751505824121,0.42627081,109160.0,109150.0,0.44576827]
[1751505824716,0.42627081,109160.0,109150.0,0.196238]
[1751505825017,0.42627081,109160.0,109150.0,0.44576827]
[1751505826909,0.42627081,109160.0,109150.0,0.196238]
[1751505827111,0.85902508,109160.0,109150.0,0.196238]
[1751505827521,0.91385686,109160.0,109150.0,0.196238]
[1751505828622,0.66432659,109160.0,109150.0,0.196238]
[1751505828824,0.91385686,109160.0,109150.0,0.196238]
[1751505829312,1.77209686,109160.0,109150.0,0.196238]
[1751505834523,1.46673481,109160.0,109150.0,0.196238]
[1751505834733,1.28351081,109160.0,109150.0,0.196238]
[1751505837922,1.53304108,109160.0,109150.0,0.196238]
[1751505838125,0.1831552,109150.0,109140.0,0.00013736]
[1751505838328,0.2777552,109150.0,109140.0,0.010877]
[1751505839330,0.2777552,109150.0,109140.0,0.26040727]
[1751505839725,0.2777552,109150.0,109140.0,0.010877]
[1751505839930,0.2777552,109150.0,109140.0,0.26040727]
[1751505841226,0.2777552,109150.0,109140.0,0.45664527]
[1751505844232,0.2777552,109150.0,109140.0,0.48664527]
[1751505844427,0.2777552,109150.0,109140.0,0.47590563]
[1751505845932,0.1831552,109150.0,109140.0,0.7254359]
[1751505846129,0.1831552,109150.0,109140.0,0.7862359]
[1751505846430,0.1831552,109150.0,109140.0,0.9694079]
[1751505846634,0.1831552,109150.0,109140.0,0.53670563]
[1751505846824,0.2141552,109150.0,109140.0,0.50620563]
[1751505847025,0.2462552,109150.0,109140.0,0.50620563]
[1751505847532,0.30108698,109150.0,109140.0,0.50620563]
[1751505848133,1.16200698,109150.0,109140.0,0.50620563]
[1751505851936,1.16156698,109150.0,109140.0,0.26741493]
[1751505852138,1.16156698,109150.0,109140.0,0.5169452]
[1751505854439,1.16156698,109150.0,109140.0,0.50620563]
[1751505854627,1.1067352,109150.0,109140.0,0.50620563]
[1751505855238,1.1067352,109150.0,109140.0,0.51694506]
[1751505855638,1.0746352,109150.0,109140.0,0.51694506]
[1751505855840,1.0746352,109150.0,109140.0,0.55014506]
[1751505857429,1.0436352,109150.0,109140.0,0.55014506]
[1751505857641,1.0436352,109150.0,109140.0,0.73331706]
[1751505857836,1.0428352,109150.0,109140.0,0.73331706]
[1751505858345,1.0428352,109150.0,109140.0,0.30061479]
[1751505858536,1.0428352,109150.0,109140.0,0.51694506]
[1751505858736,1.1076352,109150.0,109140.0,0.51694506]
[1751505859139,1.1071952,109150.0,109140.0,0.51694506]
[1751505859339,1.1071952,109150.0,109140.0,0.53355398]
[1751505859540,1.1071952,109150.0,109140.0,0.56435398]
[1751505859740,1.0744952,109150.0,109140.0,0.81356397]
[1751505859944,1.32386533,109150.0,109140.0,0.31482371]
[1751505860150,1.32386533,109150.0,109140.0,0.78276397]
[1751505860444,1.0744952,109150.0,109140.0,0.78276397]
[1751505861842,1.32386533,109150.0,109140.0,0.78276397]
[1751505862445,1.0744952,109150.0,109140.0,0.78276397]
[1751505862641,1.32386533,109150.0,109140.0,0.81406397]
[1751505865052,1.0744952,109150.0,109140.0,0.99723597]
[1751505865252,1.32386533,109150.0,109140.0,0.99723597]
[1751505865444,1.32386533,109150.0,109140.0,0.81406397]
[1751505865948,1.32386533,109150.0,109140.0,0.99723597]
[1751505866145,1.32542533,109150.0,109140.0,0.96593597]
[1751505868050,1.1070552,109150.0,109140.0,0.96593597]
[1751505868250,1.35642533,109150.0,109140.0,0.78276397]
[1751505868445,1.0433552,109150.0,109140.0,0.96593597]
[1751505868640,1.0433552,109150.0,109140.0,0.99753597]
[1751505868641,0.1831552,109150.0,109140.0,0.99753597]
[1751505868846,0.1831552,109150.0,109140.0,1.00827503]
[1751505869046,0.1831552,109150.0,109140.0,0.54604895]
[1751505869246,0.30067823,109160.0,109150.0,0.1831552]
[1751505869452,0.30067823,109160.0,109150.0,0.27270355]
[1751505869644,0.30067823,109160.0,109150.0,0.28344114]
[1751505870041,0.30067823,109160.0,109150.0,0.7821814]
[1751505870247,0.30067823,109160.0,109150.0,0.9784194]
[1751505870452,0.30167823,109160.0,109150.0,0.9784194]
[1751505870748,0.30367823,109160.0,109150.0,0.9784194]
[1751505871353,0.30367823,109160.0,109150.0,0.96766305]
[1751505871852,0.30367823,109160.0,109150.0,0.71821007]
[1751505874655,0.30367823,109160.0,109150.0,0.69088048]
[1751505875045,0.30367823,109160.0,109150.0,0.4415932]
[1751505875252,0.30367823,109160.0,109150.0,0.69088048]
[1751505876449,0.33677823,109160.0,109150.0,0.196238]
[1751505876649,0.65006551,109160.0,109150.0,0.196238]
[1751505877047,1.52722551,109160.0,109150.0,0.196238]
[1751505877955,1.58205729,109160.0,109150.0,0.196238]
[1751505883861,1.33277001,109160.0,109150.0,0.196238]
[1751505884053,1.58205729,109160.0,109150.0,0.196238]
[1751505889458,1.33277001,109160.0,109150.0,0.196238]
[1751505889661,1.58205729,109160.0,109150.0,0.196238]
[1751505891059,0.43244248,109150.0,109140.0,0.00013736]
[1751505891361,1.40502428,109150.0,109140.0,0.00013736]
[1751505891553,0.1831888,109130.0,109120.0,0.07600948]
[1751505891754,0.44747499,109130.0,109120.0,0.04869015]
[1751505892062,0.50857499,109130.0,109120.0,0.01679015]
[1751505892560,1.38109499,109130.0,109120.0,0.01679015]
[1751505894057,1.38109499,109130.0,109120.0,0.21502815]
[1751505895064,1.38109499,109130.0,109120.0,0.21902815]
[1751505895265,1.38109499,109130.0,109120.0,0.202238]
[1751505895665,1.13180771,109130.0,109120.0,0.202238]
[1751505895866,1.38109499,109130.0,109120.0,0.202238]
[1751505898168,1.38109499,109130.0,109120.0,0.200238]
[1751505898368,1.13180771,109130.0,109120.0,0.199238]
[1751505898567,1.38109499,109130.0,109120.0,0.199238]
[1751505899667,1.62409499,109130.0,109120.0,0.199238]
[1751505907663,0.25928771,109130.0,109120.0,0.199238]
[1751505907867,1.06646771,109130.0,109120.0,0.291438]
[1751505908074,1.31575499,109130.0,109120.0,0.291438]
[1751505908274,1.34615499,109130.0,109120.0,0.291438]
[1751505908475,1.34615499,109130.0,109120.0,0.199238]
[1751505908674,1.37905499,109130.0,109120.0,0.199238]
[1751505913375,0.51077499,109130.0,109120.0,0.199238]
[1751505915578,0.51077499,109130.0,109120.0,1e-08]
[1751505915880,0.56567913,109130.0,109120.0,1e-08]
[1751505917379,0.81496641,109130.0,109120.0,1e-08]
[1751505917574,0.1832223,109110.0,109100.0,0.01669992]
[1751505917783,0.69669502,109110.0,109100.0,0.0303077]
[1751505918081,1.62745502,109110.0,109100.0,0.0303077]
[1751505918878,0.1782391,109100.0,109090.0,0.0324]
[1751505919078,0.52202638,109100.0,109090.0,0.0324]
[1751505920465,1.0439991,109100.0,109090.0,0.0324]
[1751505920671,0.1782391,109100.0,109090.0,0.50802528]
[1751505920871,0.1782391,109100.0,109090.0,0.69128118]
[1751505921071,0.24995958,109100.0,109090.0,0.70202455]
[1751505921474,0.25095958,109100.0,109090.0,0.73434388]
[1751505921974,0.25095958,109100.0,109090.0,0.73934388]
[1751505922773,0.25095958,109100.0,109090.0,0.83934388]
[1751505925882,0.25095958,109100.0,109090.0,0.83934319]
[1751505926183,0.25095958,109100.0,109090.0,0.60633561]
[1751505926381,0.25095958,109100.0,109090.0,0.89213707]
[1751505926578,0.3206592,109110.0,109100.0,0.1832392]
[1751505926881,0.3206592,109110.0,109100.0,0.68536278]
[1751505927079,0.3206592,109110.0,109100.0,0.69610457]
[1751505927281,0.3206592,109110.0,109100.0,0.73261875]
[1751505927971,0.3206592,109110.0,109100.0,0.73561875]
[1751505929081,0.3206592,109110.0,109100.0,0.73861875]
[1751505929577,0.3206592,109110.0,109100.0,0.48933147]
[1751505929882,0.56994648,109110.0,109100.0,0.32281729]
[1751505930277,0.56994648,109110.0,109100.0,0.51905529]
[1751505931783,0.3206592,109110.0,109100.0,0.51905529]
[1751505932482,0.3206592,109110.0,109100.0,0.5083135]
[1751505933081,0.56994648,109110.0,109100.0,0.5083135]
[1751505933282,0.3206592,109110.0,109100.0,0.5083135]
[1751505933478,0.56994648,109110.0,109100.0,0.5083135]
[1751505933679,0.3206592,109110.0,109100.0,0.5083135]
[1751505934875,0.3206592,109110.0,109100.0,0.4809772]
[1751505936782,0.3206592,109110.0,109100.0,0.73026448]
[1751505936978,0.3206592,109110.0,109100.0,0.4809772]
[1751505937286,0.3206592,109110.0,109100.0,0.73026448]
[1751505938790,0.3206592,109110.0,109100.0,0.4809772]
[1751505939085,0.27485,109110.0,109100.0,0.81026448]
[1751505939290,0.2290408,109110.0,109100.0,0.59905551]
[1751505939487,0.2290408,109110.0,109100.0,1.29834279]
[1751505939689,0.183234,109110.0,109100.0,1.28760078]
[1751505939991,0.183234,109110.0,109100.0,0.83760078]
[1751505941690,0.2748238,109120.0,109110.0,0.1832223]
[1751505941891,0.2290199,109120.0,109110.0,0.56680958]
[1751505942195,0.1832056,109120.0,109110.0,0.73155508]
[1751505942689,0.28980131,109130.0,109120.0,0.1832056]
[1751505942882,0.28980131,109130.0,109120.0,0.52779288]
[1751505943082,0.28980131,109130.0,109120.0,0.55512918]
[1751505943287,0.28980131,109130.0,109120.0,0.52779288]
[1751505944396,0.28980131,109130.0,109120.0,0.53712659]
[1751505944691,0.28980131,109130.0,109120.0,0.56446289]
[1751505945286,0.28980131,109130.0,109120.0,0.76070089]
[1751505945697,0.29080131,109130.0,109120.0,0.76070089]
[1751505946287,0.29080131,109130.0,109120.0,0.73336459]
[1751505947393,0.29080131,109130.0,109120.0,0.48407731]
[1751505948195,0.2300014,109130.0,109120.0,0.73336459]
[1751505949398,0.001,109130.0,109120.0,0.77336459]
[1751505949903,0.001,109130.0,109120.0,0.80066131]
[1751505950801,0.1841887,109130.0,109120.0,0.80066131]
[1751505951003,0.1841887,109130.0,109120.0,0.81140109]
[1751505951302,0.001,109130.0,109120.0,0.81140109]
[1751505951503,0.19799937,109140.0,109130.0,0.1831887]
[1751505951703,0.19799937,109140.0,109130.0,0.49607598]
[1751505952701,0.20099937,109140.0,109130.0,0.49607598]
[1751505953001,0.20299937,109140.0,109130.0,0.49607598]
[1751505953597,0.23629937,109140.0,109130.0,0.49607598]
[1751505955208,0.23629937,109140.0,109130.0,0.69231398]
[1751505958206,0.20299937,109140.0,109130.0,0.69231398]
[1751505961411,0.20299937,109140.0,109130.0,1.55567398]
[1751505966413,0.20299937,109140.0,109130.0,1.33368342]
[1751505966912,0.20299937,109140.0,109130.0,1.5829707]
[1751505968017,0.20299937,109140.0,109130.0,0.7196107]
[1751505968218,0.20299937,109140.0,109130.0,1.5821307]
[1751505970227,0.20299937,109140.0,109130.0,1.68864488]
[1751505970820,0.20299937,109140.0,109130.0,1.69938391]
[1751505971312,0.20299777,109140.0,109130.0,1.69938391]
[1751505971515,0.19815286,109150.0,109140.0,0.183172]
[1751505971707,0.19815286,109150.0,109140.0,1.26338006]
[1751505971911,0.19815286,109150.0,109140.0,1.09409278]
[1751505972105,0.19815286,109150.0,109140.0,0.70145396]
[1751505972720,0.19815286,109150.0,109140.0,0.6907158]
[1751505972919,0.20215286,109150.0,109140.0,0.66435462]
[1751505973420,0.20215286,109150.0,109140.0,1.54104955]
[1751505973421,0.01899766,109150.0,109140.0,1.54104955]
[1751505973615,0.02199766,109150.0,109140.0,0.90854699]
[1751505974315,0.20515286,109150.0,109140.0,0.65925971]
[1751505974521,0.1901552,109150.0,109140.0,0.90854699]
[1751505974917,0.1861552,109150.0,109140.0,0.90854699]
[1751505975118,0.1861552,109150.0,109140.0,0.85369264]
[1751505975421,0.003,109150.0,109140.0,1.04993064]
[1751505975818,0.48924923,109160.0,109150.0,0.1831552]
[1751505976017,0.48924923,109160.0,109150.0,1.33785309]
[1751505977117,0.49224923,109160.0,109150.0,1.33785309]
[1751505977318,0.49224923,109160.0,109150.0,1.11996581]
[1751505977519,0.49224923,109160.0,109150.0,1.36925309]
[1751505977821,0.49224923,109160.0,109150.0,1.11996581]
[1751505978022,0.49524923,109160.0,109150.0,1.36925309]
[1751505979427,0.44946103,109160.0,109150.0,1.36925309]
[1751505980126,0.44946103,109160.0,109150.0,1.56549109]
[1751505980727,0.44946103,109160.0,109150.0,1.31620381]
[1751505980929,0.44946103,109160.0,109150.0,1.56549109]
[1751505983029,0.44946103,109160.0,109150.0,1.31620381]
[1751505983231,0.44946103,109160.0,109150.0,1.56549109]
[1751505984834,0.44946103,109160.0,109150.0,1.53815789]
[1751505985641,0.41616103,109160.0,109150.0,1.53815789]
[1751505988743,0.41616103,109160.0,109150.0,1.56845789]
[1751505989847,0.41616103,109160.0,109150.0,1.53815789]
[1751505990240,0.41616103,109160.0,109150.0,1.28887061]
[1751505990547,0.41616103,109160.0,109150.0,1.53815789]
[1751505991448,0.41616103,109160.0,109150.0,1.28887061]
[1751505991647,0.41616103,109160.0,109150.0,1.53815789]
[1751505992743,0.41616103,109160.0,109150.0,1.28887061]
[1751505992946,0.41616103,109160.0,109150.0,1.53815789]
[1751505994049,0.41616103,109160.0,109150.0,1.28887061]
[1751505994251,0.41616103,109160.0,109150.0,1.53815789]
[1751505994850,0.41616103,109160.0,109150.0,1.56549109]
[1751505995448,0.41616103,109160.0,109150.0,1.57622857]
[1751505997453,0.41616103,109160.0,109150.0,1.32694129]
[1751505998043,0.66541783,109160.0,109150.0,1.57619809]
[1751505999355,0.41616103,109160.0,109150.0,1.57619803]
[1751505999654,0.38536103,109160.0,109150.0,1.57619803]
[1751505999857,0.38536103,109160.0,109150.0,1.63445595]
[1751506000148,0.38536103,109160.0,109150.0,1.64519332]
[1751506000349,0.33957393,109160.0,109150.0,1.61786012]
[1751506000750,0.33957393,109160.0,109150.0,1.6178601]
[1751506001146,0.33957393,109160.0,109150.0,1.67271445]
[1751506002356,0.33957393,109160.0,109150.0,1.42345765]
[1751506002557,0.33957393,109160.0,109150.0,1.67271445]
[1751506004060,0.29378933,109160.0,109150.0,1.67271445]
[1751506004256,0.07773933,109160.0,109150.0,2.01547591]
[1751506004652,0.26087773,109160.0,109150.0,1.76621911]
[1751506004852,0.26087773,109160.0,109150.0,2.05198913]
[1751506005252,0.07773933,109160.0,109150.0,2.01547591]
[1751506005455,0.3066973,109170.0,109160.0,0.1831385]
[1751506005652,0.1831337,109170.0,109160.0,0.83974171]
[1751506005849,0.38824785,109180.0,109170.0,0.1831217]
[1751506006152,0.46197333,109180.0,109170.0,1.35049514]
[1751506006349,0.43067333,109180.0,109170.0,1.35049514]
[1751506006854,0.43067333,109180.0,109170.0,1.10123834]
[1751506007158,0.43067333,109180.0,109170.0,1.35049514]
[1751506007358,0.67993013,109180.0,109170.0,1.10123834]
[1751506007559,0.67993013,109180.0,109170.0,1.35049514]
[1751506007760,0.43067333,109180.0,109170.0,1.35041966]
[1751506007960,0.43367333,109180.0,109170.0,1.10123834]
[1751506008160,0.43367333,109180.0,109170.0,1.35041966]
[1751506008860,0.43667333,109180.0,109170.0,1.35041966]
[1751506009260,0.43667333,109180.0,109170.0,1.32304302]
[1751506009655,0.43667333,109180.0,109170.0,1.33208027]
[1751506009957,0.43667333,109180.0,109170.0,0.01073583]
[1751506009958,0.68585465,109180.0,109170.0,0.01073583]
[1751506010162,0.1831217,109170.0,109160.0,1.11608674]
[1751506010363,0.52640302,109170.0,109160.0,1.17260767]
[1751506010555,0.2772217,109170.0,109160.0,1.17260767]
[1751506011561,0.2782217,109170.0,109160.0,1.20410767]
[1751506011764,0.2802217,109170.0,109160.0,1.20410767]
[1751506012254,0.2802217,109170.0,109160.0,1.40034567]
[1751506012864,0.2802217,109170.0,109160.0,1.64952699]
[1751506014853,0.2802217,109170.0,109160.0,1.63879036]
[1751506015053,0.2802217,109170.0,109160.0,1.64818699]
[1751506015461,0.2488217,109170.0,109160.0,1.65892345]
[1751506015766,0.2182217,109170.0,109160.0,1.69082345]
[1751506019666,0.2182217,109170.0,109160.0,1.7273318]
[1751506019869,0.2182217,109170.0,109160.0,1.71659534]
[1751506020170,0.2182217,109170.0,109160.0,0.77911104]
[1751506020366,0.2515217,109170.0,109160.0,1.60649104]
[1751506021070,0.50070302,109170.0,109160.0,0.22361464]
[1751506021270,0.50070302,109170.0,109160.0,0.196238]
[1751506024466,0.2515217,109170.0,109160.0,0.196238]
[1751506024671,0.50070302,109170.0,109160.0,0.196238]
[1751506024872,0.55560716,109170.0,109160.0,0.196238]
[1751506030670,0.80478848,109170.0,109160.0,0.196238]
[1751506031374,0.55560716,109170.0,109160.0,0.196238]
[1751506032872,0.80478848,109170.0,109160.0,0.196238]
[1751506033777,0.55560716,109170.0,109160.0,0.196238]
[1751506034979,0.50070302,109170.0,109160.0,0.196238]
[1751506036866,0.74988434,109170.0,109160.0,0.196238]
[1751506037273,1.60768434,109170.0,109160.0,0.196238]
[1751506037578,0.50070302,109170.0,109160.0,0.196238]
[1751506043882,0.50082133,109170.0,109160.0,0.196238]
[1751506048082,0.50082133,109170.0,109160.0,0.22361464]
[1751506048383,0.75012096,109170.0,109160.0,0.22361464]
[1751506050084,0.75012096,109170.0,109160.0,0.22364319]
[1751506057682,0.2515217,109170.0,109160.0,0.22364319]
[1751506057987,0.50082133,109170.0,109160.0,0.22364319]
[1751506058186,0.50082133,109170.0,109160.0,0.25524319]
[1751506058886,0.43542133,109170.0,109160.0,0.43838159]
[1751506059082,1.28998133,109170.0,109160.0,1.01291789]
[1751506059290,0.43542133,109170.0,109160.0,0.76361826]
[1751506059592,0.43542133,109170.0,109160.0,1.04942624]
[1751506059782,0.43542133,109170.0,109160.0,0.80012661]
[1751506060378,0.43542133,109170.0,109160.0,0.800126]
[1751506061188,0.43542133,109170.0,109160.0,0.76361765]
[1751506064188,0.43542133,109170.0,109160.0,0.51431802]
[1751506064397,0.43542133,109170.0,109160.0,0.75288122]
[1751506066497,0.1861217,109170.0,109160.0,0.75288122]
[1751506066698,0.43542133,109170.0,109160.0,0.75288122]
[1751506068998,0.43542133,109170.0,109160.0,0.7636176]
[1751506069595,0.43542133,109170.0,109160.0,0.75288122]
[1751506069798,0.43542133,109170.0,109160.0,0.7636176]
[1751506069998,0.43542133,109170.0,109160.0,0.51431797]
[1751506070297,0.43542133,109170.0,109160.0,0.7636176]
[1751506070597,0.43542133,109170.0,109160.0,0.75288122]
[1751506074390,0.43542133,109170.0,109160.0,0.78938957]
[1751506074897,0.43542133,109170.0,109160.0,0.72547603]
[1751506076996,0.1861217,109170.0,109160.0,0.72547603]
[1751506077201,0.43542133,109170.0,109160.0,0.72547603]
[1751506079304,0.1861217,109170.0,109160.0,0.72547603]
[1751506079502,0.1861217,109170.0,109160.0,0.98477566]
[1751506080004,0.1861217,109170.0,109160.0,0.74621229]
[1751506080402,0.43542133,109170.0,109160.0,0.74621229]
[1751506081007,0.1861217,109170.0,109160.0,0.74621229]
[1751506081202,0.1861217,109170.0,109160.0,0.99551192]
[1751506082506,0.1861217,109170.0,109160.0,0.98477566]
[1751506082699,0.1861217,109170.0,109160.0,1.01216084]
[1751506083206,0.1861217,109170.0,109160.0,0.76286121]
[1751506083608,0.43542133,109170.0,109160.0,1.01216084]
[1751506083808,0.43542133,109170.0,109160.0,0.73547603]
[1751506084805,0.43542133,109170.0,109160.0,1.01216084]
[1751506085608,0.43542133,109170.0,109160.0,0.51356158]
[1751506085807,0.43542133,109170.0,109160.0,1.60610121]
[1751506086308,0.46702133,109170.0,109160.0,1.60610121]
[1751506086897,0.46702133,109170.0,109160.0,1.61683754]
[1751506087908,0.46702133,109170.0,109160.0,1.61685274]
[1751506089614,0.2177217,109170.0,109160.0,1.61685274]
[1751506089807,0.46702133,109170.0,109160.0,1.61685274]
[1751506091511,0.46702133,109170.0,109160.0,1.86615237]
[1751506092315,0.46702133,109170.0,109160.0,1.61685274]
[1751506093019,0.46702133,109170.0,109160.0,1.58945236]
[1751506093216,0.46702133,109170.0,109160.0,1.61686258]
[1751506094816,0.46702133,109170.0,109160.0,1.65337615]
[1751506096014,0.46702133,109170.0,109160.0,0.33519812]
[1751506096213,0.53042133,109170.0,109160.0,1.58813615]
[1751506096515,0.53042133,109170.0,109160.0,1.55162312]
[1751506097122,0.53042133,109170.0,109160.0,0.66682312]
[1751506097314,0.53042133,109170.0,109160.0,1.51998312]
[1751506097615,0.53042133,109170.0,109160.0,1.27068349]
[1751506097920,0.53042133,109170.0,109160.0,0.23438509]
[1751506098113,0.53042133,109170.0,109160.0,0.27089866]
[1751506099412,0.53042133,109170.0,109160.0,0.26016179]
[1751506101415,0.53042133,109170.0,109160.0,0.44330019]
[1751506102521,0.53042133,109170.0,109160.0,0.40678662]
[1751506102713,0.53042133,109170.0,109160.0,0.22364822]
[1751506102914,0.53042133,109170.0,109160.0,0.40678662]
[1751506103115,0.53042133,109170.0,109160.0,0.41752347]
[1751506105224,0.2811217,109170.0,109160.0,0.41752347]
[1751506105716,0.53042133,109170.0,109160.0,0.41752347]
[1751506105911,0.53042133,109170.0,109160.0,0.6668231]
[1751506106726,1.38354133,109170.0,109160.0,0.6668231]
[1751506108227,0.53042133,109170.0,109160.0,0.6668231]
[1751506108426,1.38350133,109170.0,109160.0,0.6668231]
[1751506113227,1.39858082,109170.0,109160.0,0.6668231]